fUST/lending_fUST_20250818
["ID","MTS","AMOUNT","RATE_DAILY","PERIOD"]
[379991628,1755461450615,-232.1512529,0.00024,7]
[379991629,1755461450624,-528.48506731,0.00024,7]
[379991630,1755461450633,-216.83204348,0.00024,7]
[379991631,1755461450642,-160.0,0.00024,7]
[379991632,1755461450651,-160.0,0.00024,7]
[379991633,1755461450660,-160.0,0.00024,7]
[379991634,1755461450669,-160.0,0.00024,7]
[379991635,1755461450678,-151.0,0.0002409,5]
[379991636,1755461450687,-578.48,0.00024109,2]
[379991637,1755461450696,-1324.31,0.00024109,2]
[379991638,1755461450705,-1062.14,0.00024109,2]
[379991639,1755461450715,-480.0,0.00024109,2]
[379991640,1755461450724,-151.0,0.00024109,7]
[379991641,1755461450733,-466.48817753,0.00024109,2]
[379991691,1755461791438,345.974949,0.00013699,2]
[379991697,1755461811544,1037.7092282,0.00017999,2]
[379991702,1755461888690,1084.4068818,0.00018089,2]
[379991719,1755462007489,13602.6354801,0.0001819,2]
[379991765,1755462206184,3735.7925242,0.0001778,2]
[379991778,1755462282433,162.65986228,0.00017938,2]
[379991788,1755462317638,622.7695485,0.00017715,2]
[379991804,1755462385156,501.072189,0.00017666,2]
[379991941,1755462636318,-189.52552289,0.00018392,2]
[379991942,1755462636328,-457.493584,0.00018393,2]
[379991943,1755462636338,-300.0,0.00018492,2]
[379991944,1755462636347,-1200.0,0.00018492,2]
[379991945,1755462636357,-7702.02215556,0.00018493,2]
[379991946,1755462636366,-720.0,0.00018592,2]
[379991947,1755462636375,-5858.48446711,0.00018593,2]
[379991948,1755462636385,-479.10591477,0.000189,2]
[379991949,1755462636395,-571.98518652,0.00018961,2]
[379992105,1755462638510,-1113.32612943,0.00018961,2]
[379992107,1755462638519,-643.90429598,0.0001906,2]
[379992109,1755462638529,-500.0,0.0001906,2]
[379992110,1755462638538,-500.0,0.0001906,2]
[379992111,1755462638547,-500.0,0.0001906,2]
[379992112,1755462638556,-500.0,0.0001906,2]
[379992113,1755462638565,-500.0,0.0001906,2]
[379992114,1755462638574,-500.0,0.0001906,2]
[379992115,1755462638587,-500.0,0.0001906,2]
[379992116,1755462638596,-500.0,0.0001906,2]
[379992117,1755462638616,-33.85443488,0.0001906,2]
[379992147,1755462640673,-341.02644722,0.0001906,2]
[379992241,1755462646605,-125.1191179,0.0001906,2]
[379992243,1755462646614,-164.39285155,0.0001906,2]
[379992245,1755462646624,-268.49706684,0.0001906,2]
[379992247,1755462646634,-500.0,0.0001906,2]
[379992248,1755462646643,-271.61781128,0.0001906,2]
[379992253,1755462646716,-228.38218872,0.0001906,2]
[379992255,1755462646726,-212.50241763,0.0001906,2]
[379992261,1755462663732,3826.4186601,0.00018142,2]
[379992276,1755462781000,200.0,0.0002876,120]
[379992292,1755462984431,344.524208,0.00013699,2]
[379992293,1755462998814,157.0,7.9e-07,2]
[379992294,1755462999847,157.0,7.9e-07,2]
[379992295,1755463000945,157.0,7.9e-07,2]
[379992296,1755463002029,157.0,7.9e-07,2]
[379992297,1755463003076,157.0,7.9e-07,2]
[379992298,1755463004115,157.0,7.9e-07,2]
[379992299,1755463005255,157.0,7.9e-07,2]
[379992300,1755463006568,157.0,7.9e-07,2]
[379992301,1755463007695,157.0,7.9e-07,2]
[379992305,1755463035453,233681.0,0.00028767,120]
[379992317,1755463121389,209.6871537,0.00017891,2]
[379992338,1755463336409,559.881941,0.00017932,2]
[379992364,1755463601117,-160.0,0.00018491,2]
[379992365,1755463601139,-286.15369234,0.00018871,2]
[379992367,1755463610949,7350.8365426,0.00017953,2]
[379992425,1755463831816,-1755.53262079,0.0001885,2]
[379992426,1755463831827,-1200.0,0.00018872,2]
[379992427,1755463831836,-1623.09650179,0.00018873,2]
[379992428,1755463831845,-5275.6603113,0.00018873,2]
[379992429,1755463831854,-1200.0,0.00018947,2]
[379992430,1755463831863,-300.0,0.00018948,2]
[379992431,1755463831872,-300.0,0.00018948,2]
[379992432,1755463831881,-300.0,0.00018948,2]
[379992433,1755463831890,-300.0,0.00018948,2]
[379992434,1755463831898,-28992.69947932,0.00018949,2]
[379992435,1755463831912,-3787.96728801,0.00018949,2]
[379992436,1755463831923,-1819.9,0.00018949,2]
[379992471,1755463837746,-505.75395028,0.00018949,2]
[379992478,1755463837803,-14893.67928239,0.00018949,2]
[379992480,1755463837812,-173.68947169,0.0001895,2]
[379992482,1755463837822,-151.0,0.0001895,2]
[379992484,1755463837831,-151.0,0.0001895,2]
[379992486,1755463837841,-151.0,0.0001895,2]
[379992488,1755463837851,-151.0,0.0001895,2]
[379992490,1755463837861,-151.0,0.0001895,2]
[379992492,1755463837870,-500.0,0.0001895,2]
[379992494,1755463837880,-151.0,0.0001895,2]
[379992496,1755463837889,-151.0,0.0001895,2]
[379992498,1755463837898,-468.0,0.00018951,2]
[379992499,1755463837909,-152.21211499,0.00018951,2]
[379992501,1755463837918,-151.0,0.00018951,2]
[379992503,1755463837928,-500.0,0.00018951,2]
[379992505,1755463837938,-151.0,0.00018951,2]
[379992507,1755463837947,-151.0,0.00018951,2]
[379992509,1755463837956,-151.0,0.00018951,2]
[379992511,1755463837965,-228.83720675,0.00018951,2]
[379992513,1755463837974,-427.8446499,0.00018951,2]
[379992515,1755463837983,-500.0,0.00018951,2]
[379992517,1755463837992,-500.0,0.00018951,2]
[379992519,1755463838002,-500.0,0.00018951,2]
[379992521,1755463838012,-500.0,0.00018951,2]
[379992523,1755463838021,-500.0,0.00018951,2]
[379992525,1755463838030,-500.0,0.00018951,2]
[379992527,1755463838039,-500.0,0.00018951,2]
[379992529,1755463838049,-500.0,0.00018951,2]
[379992531,1755463838058,-500.0,0.00018951,2]
[379992533,1755463838067,-500.0,0.00018951,2]
[379992535,1755463838076,-500.0,0.00018951,2]
[379992537,1755463838085,-500.0,0.00018951,2]
[379992539,1755463838095,-500.0,0.00018951,2]
[379992556,1755463838245,-408.59205669,0.00018951,2]
[379992558,1755463838254,-500.0,0.00018951,2]
[379992560,1755463838264,-500.0,0.00018951,2]
[379992562,1755463838273,-500.0,0.00018951,2]
[379992564,1755463838282,-500.0,0.00018951,2]
[379992566,1755463838291,-500.0,0.00018951,2]
[379992568,1755463838301,-500.0,0.00018951,2]
[379992570,1755463838310,-500.0,0.00018951,2]
[379992572,1755463838319,-500.0,0.00018951,2]
[379992574,1755463838329,-500.0,0.00018951,2]
[379992576,1755463838338,-500.0,0.00018951,2]
[379992578,1755463838347,-500.0,0.00018951,2]
[379992580,1755463838356,-500.0,0.00018951,2]
[379992582,1755463838365,-500.0,0.00018951,2]
[379992584,1755463838375,-500.0,0.00018951,2]
[379992586,1755463838385,-361.2745104,0.00018951,2]
[379992588,1755463838394,-500.0,0.00018951,2]
[379992590,1755463838403,-500.0,0.00018951,2]
[379992592,1755463838412,-500.0,0.00018951,2]
[379992594,1755463838422,-500.0,0.00018951,2]
[379992596,1755463838431,-500.0,0.00018951,2]
[379992598,1755463838440,-500.0,0.00018951,2]
[379992600,1755463838449,-500.0,0.00018951,2]
[379992602,1755463838459,-500.0,0.00018951,2]
[379992604,1755463838468,-500.0,0.00018951,2]
[379992606,1755463838478,-276.30827851,0.00018951,2]
[379992608,1755463838487,-500.0,0.00018951,2]
[379992610,1755463838495,-500.0,0.00018951,2]
[379992612,1755463838504,-500.0,0.00018951,2]
[379992614,1755463838513,-500.0,0.00018951,2]
[379992616,1755463838523,-500.0,0.00018951,2]
[379992618,1755463838532,-500.0,0.00018951,2]
[379992620,1755463838541,-500.0,0.00018951,2]
[379992622,1755463838550,-500.0,0.00018951,2]
[379992624,1755463838559,-500.0,0.00018951,2]
[379992626,1755463838569,-500.0,0.00018951,2]
[379992628,1755463838579,-500.0,0.00018951,2]
[379992630,1755463838588,-500.0,0.00018951,2]
[379992632,1755463838597,-500.0,0.00018951,2]
[379992634,1755463838606,-500.0,0.00018951,2]
[379992636,1755463838615,-500.0,0.00018951,2]
[379992638,1755463838624,-500.0,0.00018951,2]
[379992640,1755463838634,-500.0,0.00018951,2]
[379992642,1755463838643,-500.0,0.00018951,2]
[379992644,1755463838653,-500.0,0.00018951,2]
[379992646,1755463838662,-500.0,0.00018951,2]
[379992648,1755463838671,-626.29,0.00018952,3]
[379992650,1755463838680,-313.15,0.00018952,3]
[379992652,1755463838689,-156.57,0.00018952,3]
[379992654,1755463838698,-469.74,0.00018952,3]
[379992655,1755463838707,-500.0,0.00018961,2]
[379992657,1755463838717,-496.26903179,0.00018961,2]
[379992659,1755463838727,-151.0,0.00018961,2]
[379992661,1755463838736,-151.0,0.00018961,2]
[379992663,1755463838745,-151.0,0.00018961,2]
[379992665,1755463838754,-151.0,0.00018961,2]
[379992667,1755463838763,-151.0,0.00018961,2]
[379992669,1755463838772,-151.0,0.00018961,2]
[379992671,1755463838781,-151.08601362,0.00018961,2]
[379992673,1755463838791,-151.0,0.00018961,2]
[379992675,1755463838800,-151.0,0.00018961,2]
[379992677,1755463838809,-151.0,0.00018961,2]
[379992679,1755463838819,-151.0,0.00018961,2]
[379992681,1755463838828,-6431.81600917,0.00018962,2]
[379992683,1755463838837,-370000.0,0.00018962,2]
[379992685,1755463838846,-500.0,0.00018973,2]
[379992687,1755463838856,-500.0,0.00018973,2]
[379992689,1755463838865,-500.0,0.00018973,2]
[379992691,1755463838873,-294.63198814,0.00018973,2]
[379992693,1755463838882,-500.0,0.00018973,2]
[379992695,1755463838891,-500.0,0.00018973,2]
[379992697,1755463838900,-500.0,0.00018973,2]
[379992699,1755463838909,-500.0,0.00018973,2]
[379992700,1755463838918,-500.0,0.00018973,2]
[379992701,1755463838927,-500.0,0.00018973,2]
[379992702,1755463838936,-500.0,0.00018973,2]
[379992703,1755463838945,-500.0,0.00018973,2]
[379992704,1755463838954,-500.0,0.00018973,2]
[379992705,1755463838963,-500.0,0.00018973,2]
[379992706,1755463838971,-500.0,0.00018973,2]
[379992707,1755463838980,-503.19760931,0.00018973,2]
[379992708,1755463838989,-500.0,0.00018973,2]
[379992709,1755463838998,-500.0,0.00018973,2]
[379992710,1755463839007,-500.0,0.00018973,2]
[379992711,1755463839016,-500.0,0.00018973,2]
[379992712,1755463839026,-547.76989051,0.00018973,2]
[379992713,1755463839035,-500.0,0.00018973,2]
[379992714,1755463839044,-500.0,0.00018973,2]
[379992715,1755463839053,-442.75160345,0.00018973,2]
[379992716,1755463839062,-365.60859336,0.00018973,2]
[379992717,1755463839071,-500.0,0.00018973,2]
[379992718,1755463839080,-211.57959969,0.00018973,2]
[379992719,1755463839090,-500.0,0.00018973,2]
[379992720,1755463839102,-500.0,0.00018973,2]
[379992721,1755463839111,-509.53924554,0.00018973,2]
[379992722,1755463839120,-500.0,0.00018973,2]
[379992723,1755463839131,-500.0,0.00018973,2]
[379992724,1755463839141,-158.7577131,0.00018973,2]
[379992725,1755463839150,-151.0,0.00018973,2]
[379992726,1755463839159,-151.0,0.00018973,2]
[379992727,1755463839168,-245.0,0.00018973,2]
[379992728,1755463839179,-151.55192868,0.00018973,2]
[379992729,1755463839188,-151.0,0.00018973,2]
[379992730,1755463839198,-151.0,0.00018973,2]
[379992731,1755463839207,-151.0,0.00018973,2]
[379992733,1755463839216,-151.0,0.00018973,2]
[379992734,1755463839225,-500.0,0.00018973,2]
[379992735,1755463839235,-151.0,0.00018973,2]
[379992736,1755463839246,-151.0,0.00018973,2]
[379992738,1755463839255,-200.0,0.00019064,20]
[379992740,1755463839266,-200.0,0.00019064,20]
[379992742,1755463839275,-200.0,0.00019064,20]
[379992744,1755463839284,-200.0,0.00019064,20]
[379992746,1755463839293,-200.0,0.00019064,20]
[379992748,1755463839302,-200.0,0.00019064,20]
[379992750,1755463839311,-200.0,0.00019064,20]
[379992752,1755463839320,-200.0,0.00019064,20]
[379992754,1755463839329,-200.0,0.00019064,20]
[379992756,1755463839338,-200.0,0.00019064,20]
[379992758,1755463839347,-600.0,0.00019064,20]
[379992760,1755463839356,-208.53138731,0.00019149,2]
[379992762,1755463839365,-480.0,0.00019178,2]
[379992764,1755463839374,-460.0,0.00019178,2]
[379992766,1755463839383,-480.0,0.00019178,2]
[379992768,1755463839392,-558.0,0.00019178,2]
[379992770,1755463839402,-480.0,0.00019178,2]
[379992772,1755463839411,-480.0,0.00019178,2]
[379992774,1755463839421,-557.26,0.00019178,2]
[379992776,1755463839431,-480.0,0.00019178,2]
[379992778,1755463839440,-480.0,0.00019178,2]
[379992780,1755463839449,-480.0,0.00019178,2]
[379992782,1755463839458,-480.0,0.00019178,2]
[379992784,1755463839467,-480.0,0.00019178,2]
[379992786,1755463839477,-151.0,0.00019178,2]
[379992788,1755463839486,-480.0,0.00019178,2]
[379992790,1755463839495,-480.0,0.00019178,2]
[379992792,1755463839503,-480.0,0.00019178,2]
[379992794,1755463839513,-480.0,0.00019178,2]
[379992796,1755463839522,-480.0,0.00019178,2]
[379992798,1755463839531,-381.87,0.00019178,2]
[379992800,1755463839540,-973.62,0.00019178,2]
[379992801,1755463839550,-480.0,0.00019178,2]
[379992803,1755463839559,-1213.95,0.00019178,2]
[379992805,1755463839568,-480.0,0.00019178,2]
[379992807,1755463839577,-460.0,0.00019178,2]
[379992809,1755463839588,-460.81391095,0.00019178,2]
[379992811,1755463839597,-480.0,0.00019178,2]
[379992813,1755463839606,-480.0,0.00019178,2]
[379992815,1755463839616,-480.0,0.00019178,2]
[379992817,1755463839625,-480.0,0.00019178,2]
[379992819,1755463839635,-480.0,0.00019178,2]
[379992822,1755463839645,-480.0,0.00019178,2]
[379992824,1755463839654,-480.0,0.00019178,2]
[379992826,1755463839663,-500.0,0.00019178,2]
[379992827,1755463839672,-500.0,0.00019178,2]
[379992828,1755463839681,-500.0,0.00019178,2]
[379992830,1755463839691,-162.4,0.00019178,2]
[379992831,1755463839700,-480.0,0.00019178,2]
[379992832,1755463839709,-480.0,0.00019178,2]
[379992833,1755463839718,-1620.56,0.00019178,2]
[379992834,1755463839727,-469.53,0.00019178,2]
[379992835,1755463839736,-460.0,0.00019178,2]
[379992836,1755463839745,-517.75,0.00019178,2]
[379992837,1755463839755,-480.0,0.00019178,2]
[379992838,1755463839764,-480.0,0.00019178,2]
[379992839,1755463839773,-530.27,0.00019178,2]
[379992841,1755463839783,-480.0,0.00019178,2]
[379992843,1755463839792,-480.0,0.00019178,2]
[379992844,1755463839801,-792.85,0.00019178,2]
[379992845,1755463839811,-199.57514523,0.00019178,2]
[379992846,1755463839820,-480.0,0.00019178,2]
[379992847,1755463839829,-480.0,0.00019178,2]
[379992848,1755463839838,-480.0,0.00019178,2]
[379992849,1755463839847,-460.0,0.00019178,2]
[379992850,1755463839857,-541.33,0.00019178,2]
[379992851,1755463839866,-480.0,0.00019178,2]
[379992852,1755463839874,-480.0,0.00019178,2]
[379992853,1755463839887,-544.57,0.00019178,2]
[379992854,1755463839901,-480.0,0.00019178,2]
[379992855,1755463839910,-151.0,0.00019224,2]
[379992856,1755463839919,-151.0,0.00019224,2]
[379992857,1755463839928,-151.0,0.00019224,2]
[379992858,1755463839939,-151.0,0.00019224,2]
[379992859,1755463839954,-500.0,0.00019224,2]
[379992860,1755463839974,-151.0,0.00019224,2]
[379992861,1755463839984,-151.0,0.00019224,2]
[379992862,1755463839993,-468.0,0.00019225,2]
[379992863,1755463840002,-500.0,0.00019225,2]
[379992864,1755463840012,-151.0,0.00019225,2]
[379992865,1755463840021,-151.22279765,0.00019225,2]
[379992866,1755463840031,-151.0,0.00019225,2]
[379992867,1755463840050,-500.0,0.00019235,2]
[379992868,1755463840062,-151.0,0.00019235,2]
[379992869,1755463840072,-151.0,0.00019235,2]
[379992870,1755463840081,-151.0,0.00019235,2]
[379992871,1755463840091,-151.0,0.00019235,2]
[379992872,1755463840103,-269.4039774,0.00019235,2]
[379992873,1755463840112,-151.0,0.00019247,2]
[379992874,1755463840121,-151.0,0.00019247,2]
[379992875,1755463840131,-151.0,0.00019247,2]
[379992876,1755463840140,-151.56284473,0.00019247,2]
[379992877,1755463840154,-151.0,0.00019247,2]
[379992878,1755463840164,-500.0,0.00019247,2]
[379992879,1755463840174,-151.0,0.00019247,2]
[379992880,1755463840183,-151.0,0.00019247,2]
[379992881,1755463840192,-480.0,0.00019452,2]
[379992882,1755463840201,-251.16361366,0.00019452,2]
[379992883,1755463840210,-480.0,0.00019452,2]
[379992884,1755463840220,-480.0,0.00019452,2]
[379992885,1755463840229,-480.0,0.00019452,2]
[379992886,1755463840238,-480.0,0.00019452,2]
[379992887,1755463840248,-973.62,0.00019452,2]
[379992888,1755463840257,-480.0,0.00019452,2]
[379992889,1755463840266,-1213.95,0.00019452,2]
[379992890,1755463840276,-480.0,0.00019452,2]
[379992891,1755463840285,-480.0,0.00019452,2]
[379992892,1755463840294,-480.0,0.00019452,2]
[379992893,1755463840303,-480.0,0.00019452,2]
[379992894,1755463840313,-480.0,0.00019452,2]
[379992895,1755463840323,-480.0,0.00019452,2]
[379992896,1755463840333,-480.0,0.00019452,2]
[379992897,1755463840343,-267.78,0.00019452,2]
[379992898,1755463840353,-480.0,0.00019452,2]
[379992899,1755463840362,-1620.56,0.00019452,2]
[379992900,1755463840371,-530.27,0.00019452,2]
[379992901,1755463840380,-621.1,0.00019452,2]
[379992902,1755463840390,-792.85,0.00019452,2]
[379992903,1755463840399,-480.0,0.00019452,2]
[379992904,1755463840408,-480.0,0.00019452,2]
[379992905,1755463840417,-480.0,0.00019452,2]
[379992906,1755463840427,-480.0,0.00019452,2]
[379992907,1755463840436,-480.0,0.00019452,2]
[379992908,1755463840445,-480.0,0.00019452,2]
[379992909,1755463840454,-1623.09650177,0.00019472,2]
[379992910,1755463840463,-151.0,0.00019498,2]
[379992911,1755463840473,-151.0,0.00019498,2]
[379992912,1755463840482,-500.0,0.00019498,2]
[379992913,1755463840492,-151.0,0.00019498,2]
[379992914,1755463840501,-468.0,0.00019499,2]
[379992915,1755463840510,-349.0,0.00019499,2]
[379992916,1755463840519,-198.0,0.00019499,2]
[379992917,1755463840528,-151.0,0.00019499,2]
[379992918,1755463840538,-198.0,0.00019509,2]
[379992919,1755463840547,-198.0,0.00019509,2]
[379992920,1755463840557,-325.94993229,0.00019521,2]
[379992921,1755463840567,-531.31961904,0.00019521,2]
[379992922,1755463840576,-1000.0,0.00019521,2]
[379992923,1755463840586,-1000.0,0.00019521,2]
[379992924,1755463840594,-1000.0,0.00019521,2]
[379992925,1755463840603,-1000.0,0.00019521,2]
[379992926,1755463840613,-1000.0,0.00019521,2]
[379992927,1755463840622,-297.77908351,0.00019521,2]
[379992928,1755463840631,-1000.0,0.00019521,2]
[379992929,1755463840640,-1000.0,0.00019521,2]
[379992930,1755463840650,-1000.0,0.00019521,2]
[379992931,1755463840659,-1000.0,0.00019521,2]
[379992932,1755463840668,-1000.0,0.00019521,2]
[379992933,1755463840677,-1000.0,0.00019521,2]
[379992934,1755463840687,-1000.0,0.00019521,2]
[379992935,1755463840696,-1000.0,0.00019521,2]
[379992936,1755463840705,-158.3190125,0.00019521,2]
[379992937,1755463840714,-760.0495896,0.00019521,2]
[379992938,1755463840724,-501.07153285,0.00019521,2]
[379992939,1755463840733,-1000.0,0.00019521,2]
[379992940,1755463840742,-1000.0,0.00019521,2]
[379992941,1755463840751,-198.0,0.00019521,2]
[379992942,1755463840761,-198.0,0.00019521,2]
[379992943,1755463840769,-198.0,0.00019521,2]
[379992944,1755463840779,-217.57480334,0.00019521,2]
[379992945,1755463840787,-198.0,0.00019521,2]
[379992946,1755463840797,-1019.75845652,0.00019725,2]
[379992948,1755463840806,-480.0,0.00019726,2]
[379992950,1755463840815,-480.0,0.00019726,2]
[379992951,1755463840824,-480.0,0.00019726,2]
[379992952,1755463840833,-480.0,0.00019726,2]
[379992954,1755463840843,-973.62,0.00019726,2]
[379992955,1755463840852,-290.55,0.00019726,2]
[379992956,1755463840861,-1213.95,0.00019726,2]
[379992958,1755463840870,-480.0,0.00019726,2]
[379992960,1755463840879,-480.0,0.00019726,2]
[379992961,1755463840889,-480.0,0.00019726,2]
[379992962,1755463840898,-480.0,0.00019726,2]
[379992963,1755463840907,-480.0,0.00019726,2]
[379992964,1755463840916,-480.0,0.00019726,2]
[379992965,1755463840925,-234.85,0.00019726,2]
[379992966,1755463840934,-480.0,0.00019726,2]
[379992967,1755463840943,-1620.56,0.00019726,2]
[379992968,1755463840952,-530.27,0.00019726,2]
[379992969,1755463840961,-792.85,0.00019726,2]
[379992970,1755463840970,-480.0,0.00019726,2]
[379992972,1755463840979,-480.0,0.00019726,2]
[379992973,1755463840988,-480.0,0.00019726,2]
[379992974,1755463840997,-480.0,0.00019726,2]
[379992976,1755463841007,-480.0,0.00019726,2]
[379992977,1755463841016,-480.0,0.00019726,2]
[379992978,1755463841026,-151.0,0.00019772,2]
[379992979,1755463841035,-198.0,0.00019772,2]
[379992980,1755463841044,-468.0,0.00019773,2]
[379992981,1755463841055,-151.0,0.00019773,2]
[379992982,1755463841065,-606.509735,0.00019863,2]
[379992983,1755463841073,-5592.24952211,0.000199,2]
[379992984,1755463841082,-16850.21950294,0.0002,2]
[379992985,1755463841091,-84328.36193191,0.0002,2]
[379992986,1755463841105,-12277.37690369,0.0002,2]
[379992987,1755463841115,-19615.26985351,0.0002,2]
[379992988,1755463841124,-68322.52098655,0.0002,2]
[379992989,1755463841133,-28327.29049146,0.0002,2]
[379992990,1755463841143,-480.0,0.0002,2]
[379992991,1755463841152,-558.51,0.0002,2]
[379992992,1755463841161,-480.0,0.0002,2]
[379992993,1755463841170,-480.0,0.0002,2]
[379992994,1755463841181,-973.62,0.0002,2]
[379992995,1755463841190,-1213.95,0.0002,2]
[379992996,1755463841199,-480.0,0.0002,2]
[379992997,1755463841208,-160.0,0.0002,3]
[379992998,1755463841217,-480.0,0.0002,2]
[379992999,1755463841227,-480.0,0.0002,2]
[379993000,1755463841237,-480.0,0.0002,2]
[379993001,1755463841245,-480.0,0.0002,2]
[379993002,1755463841255,-597.6,0.0002,2]
[379993003,1755463841264,-480.0,0.0002,2]
[379993004,1755463841273,-1620.56,0.0002,2]
[379993005,1755463841283,-530.27,0.0002,2]
[379993006,1755463841292,-792.85,0.0002,2]
[379993007,1755463841302,-480.0,0.0002,2]
[379993008,1755463841311,-480.0,0.0002,2]
[379993009,1755463841320,-437.67,0.0002,2]
[379993010,1755463841329,-480.0,0.0002,2]
[379993011,1755463841341,-480.0,0.0002,2]
[379993012,1755463841351,-480.0,0.0002,2]
[379993013,1755463841359,-151.0,0.00020046,2]
[379993014,1755463841368,-468.0,0.00020047,2]
[379993015,1755463841377,-245.0,0.00020047,2]
[379993016,1755463841387,-160.0,0.00020048,2]
[379993017,1755463841396,-500.0,0.00020068,2]
[379993018,1755463841405,-1500.0,0.00020068,2]
[379993019,1755463841415,-1500.0,0.00020068,2]
[379993020,1755463841425,-212.58784812,0.00020068,2]
[379993021,1755463841434,-1500.0,0.00020068,2]
[379993022,1755463841443,-1500.0,0.00020068,2]
[379993023,1755463841452,-569.61629274,0.00020068,2]
[379993024,1755463841461,-1500.0,0.00020068,2]
[379993025,1755463841470,-1500.0,0.00020068,2]
[379993026,1755463841479,-1000.0,0.00020068,2]
[379993027,1755463841603,-1500.0,0.00020068,2]
[379993028,1755463841612,-1500.0,0.00020068,2]
[379993029,1755463841622,-1000.0,0.00020068,2]
[379993030,1755463841632,-1623.09650177,0.00020071,2]
[379993031,1755463841641,-344.524208,0.00020187,2]
[379993032,1755463841650,-220.18,0.00020273,2]
[379993033,1755463841660,-480.0,0.00020273,2]
[379993034,1755463841669,-480.0,0.00020273,2]
[379993035,1755463841679,-973.62,0.00020273,2]
[379993036,1755463841688,-1213.95,0.00020273,2]
[379993037,1755463841697,-480.0,0.00020273,2]
[379993038,1755463841707,-480.0,0.00020273,2]
[379993039,1755463841716,-480.0,0.00020273,2]
[379993040,1755463841725,-480.0,0.00020273,2]
[379993041,1755463841735,-480.0,0.00020273,2]
[379993042,1755463841744,-480.0,0.00020273,2]
[379993043,1755463841754,-1620.56,0.00020273,2]
[379993044,1755463841763,-530.27,0.00020273,2]
[379993045,1755463841773,-792.85,0.00020273,2]
[379993046,1755463841782,-480.0,0.00020273,2]
[379993047,1755463841791,-480.0,0.00020273,2]
[379993048,1755463841801,-545.31,0.00020273,2]
[379993049,1755463841810,-480.0,0.00020273,2]
[379993050,1755463841819,-480.0,0.00020273,2]
[379993051,1755463841829,-245.0,0.0002032,2]
[379993052,1755463841841,-468.0,0.00020321,2]
[379993053,1755463841851,-1252.58,0.00020322,3]
[379993054,1755463841861,-626.3,0.00020322,3]
[379993055,1755463841870,-313.14,0.00020322,3]
[379993056,1755463841879,-5592.24952209,0.00020403,2]
[379993057,1755463841888,-492.03,0.00020547,2]
[379993058,1755463841896,-480.0,0.00020547,2]
[379993059,1755463841906,-973.62,0.00020547,2]
[379993060,1755463841916,-1213.95,0.00020547,2]
[379993061,1755463841926,-480.0,0.00020547,2]
[379993062,1755463841935,-480.0,0.00020547,2]
[379993063,1755463841945,-480.0,0.00020547,2]
[379993064,1755463841954,-480.0,0.00020547,2]
[379993065,1755463841963,-480.0,0.00020547,2]
[379993066,1755463841972,-480.0,0.00020547,2]
[379993067,1755463841980,-1620.56,0.00020547,2]
[379993068,1755463841990,-530.27,0.00020547,2]
[379993069,1755463841999,-792.85,0.00020547,2]